bitfinex/quotes_BTCUSD_20230115
["timestamp","ask_amount","ask_price","bid_price","bid_amount"]
[1673776572816,0.79862922,20698.0,20697.0,0.22810504]
[1673776573001,0.56956307,20700.0,20699.0,0.76105301]
[1673776573002,0.08647207,20700.0,20699.0,0.76105301]
[1673776573265,0.08647207,20700.0,20699.0,2.62522296]
[1673776573513,0.08647207,20700.0,20699.0,1.95138201]
[1673776573514,0.46499165,20700.0,20699.0,1.95138201]
[1673776573776,0.08647207,20700.0,20699.0,0.76955301]
[1673776574029,0.08647207,20700.0,20699.0,0.76105301]
[1673776574789,0.08647207,20700.0,20699.0,0.76115805]
[1673776575059,0.08647207,20700.0,20699.0,0.85315805]
[1673776575312,0.08647207,20700.0,20699.0,1.6957977]
[1673776575554,0.08647207,20700.0,20699.0,1.7887977]
[1673776575800,0.08647207,20700.0,20699.0,1.6957977]
[1673776576049,0.08647207,20700.0,20699.0,2.1092747]
[1673776576322,0.08647207,20700.0,20699.0,1.6957977]
[1673776576590,0.08647207,20700.0,20699.0,1.7877977]
[1673776576809,0.08647207,20700.0,20699.0,1.3046827]
[1673776577070,0.08647207,20700.0,20699.0,1.29607766]
[1673776578363,0.58638522,20700.0,20699.0,0.85305301]
[1673776578851,0.57022542,20700.0,20699.0,0.76105301]
[1673776579168,0.57022542,20700.0,20699.0,0.85305301]
[1673776579367,0.87022542,20700.0,20699.0,0.76105301]
[1673776579626,0.87022542,20700.0,20699.0,0.85405301]
[1673776579875,0.7492505,20700.0,20699.0,0.85405301]
[1673776580134,0.98119394,20700.0,20699.0,0.85405301]
[1673776580626,0.38647207,20700.0,20699.0,0.17654337]
[1673776580873,0.49456207,20700.0,20698.0,0.95124926]
[1673776581133,1.749345,20699.0,20698.0,0.95124926]
[1673776582395,1.89238521,20699.0,20698.0,0.95124926]
[1673776582685,1.749345,20699.0,20698.0,0.95124926]
[1673776582942,0.1,20698.0,20690.0,0.37202022]
[1673776583165,1.932772,20696.0,20690.0,0.37202022]
[1673776583424,2.07697452,20696.0,20690.0,0.37202022]
[1673776583670,0.44420252,20695.0,20690.0,0.00187644]
[1673776583936,1.93297,20694.0,20690.0,0.00187644]
[1673776584190,0.3,20693.0,20690.0,0.00187644]
[1673776584442,1.449834,20692.0,20690.0,0.00187644]
[1673776584967,0.966556,20692.0,20690.0,0.00187644]
[1673776585216,0.88668274,20693.0,20690.0,0.00187644]
[1673776585522,0.01,20692.0,20691.0,0.46667198]
[1673776586010,0.01,20692.0,20691.0,0.46677706]
[1673776586269,0.01,20692.0,20691.0,0.64747608]
[1673776586553,0.38133309,20696.0,20691.0,0.97745308]
[1673776586843,1.60908538,20699.0,20691.0,1.81946262]
[1673776586844,0.009,20692.0,20691.0,1.81946262]
[1673776587101,0.009,20692.0,20691.0,1.62973667]
[1673776587351,0.013,20692.0,20691.0,1.62973667]
[1673776587600,0.009,20696.0,20691.0,1.14027708]
[1673776587859,0.49117547,20697.0,20692.0,0.19072595]
[1673776588149,0.49117547,20697.0,20693.0,1.15722295]
[1673776588666,0.42754622,20696.0,20693.0,1.15722295]
[1673776588921,0.42754622,20696.0,20692.0,0.483276]
[1673776589201,1.38384315,20698.0,20692.0,0.77400195]
[1673776589462,0.009,20696.0,20693.0,0.19072595]
[1673776589711,0.009,20696.0,20692.0,0.483276]
[1673776589973,0.51112113,20696.0,20692.0,0.483276]
[1673776590223,0.50212113,20696.0,20693.0,0.4596002]
[1673776590500,0.51112113,20696.0,20693.0,0.4596002]
[1673776590770,0.009,20696.0,20694.0,0.19072595]
[1673776591004,0.08647207,20700.0,20695.0,1.96182695]
[1673776591253,0.38675492,20699.0,20696.0,0.40639495]
[1673776591506,0.47784352,20699.0,20697.0,0.8046]
[1673776591783,0.40733206,20699.0,20698.0,0.215648]
[1673776592086,0.40733206,20699.0,20697.0,0.483161]
[1673776592269,0.08647207,20700.0,20695.0,0.16426527]
[1673776592531,0.52789394,20700.0,20695.0,1.02747812]
[1673776592787,0.08647207,20700.0,20696.0,0.64431333]
[1673776593031,0.08647207,20700.0,20697.0,0.804634]
[1673776593295,0.08647207,20700.0,20698.0,0.215609]
[1673776593550,0.08647207,20700.0,20699.0,0.321444]
[1673776593800,0.09047207,20700.0,20699.0,0.321444]
[1673776594063,0.08147207,20700.0,20698.0,0.00010504]
[1673776594326,0.09047207,20700.0,20698.0,0.00010504]
[1673776594580,0.08147207,20700.0,20698.0,0.00010504]
[1673776595299,0.08147207,20700.0,20698.0,0.47223095]
[1673776595557,0.09047207,20700.0,20699.0,0.001]
[1673776595810,0.09047207,20700.0,20698.0,0.47212591]
[1673776595811,0.08147207,20700.0,20698.0,0.47212591]
[1673776596090,0.09047207,20700.0,20698.0,0.47312591]
[1673776596357,0.09047207,20700.0,20699.0,0.35487345]
[1673776596606,0.08147207,20700.0,20697.0,0.45376406]
[1673776596887,0.09047207,20700.0,20699.0,0.001]
[1673776597170,0.08147207,20700.0,20697.0,0.45376406]
[1673776597416,0.09047207,20700.0,20699.0,0.001]
[1673776598209,0.57238349,20700.0,20699.0,0.001]
[1673776598822,0.56338349,20700.0,20697.0,0.50076406]
[1673776599065,0.63414209,20700.0,20696.0,0.47309359]
[1673776599312,0.5114277,20700.0,20699.0,0.001]
[1673776599562,0.59770874,20700.0,20699.0,0.001]
[1673776599806,1.38079974,20700.0,20699.0,0.001]
[1673776600042,1.09452419,20700.0,20699.0,0.001]
[1673776600299,1.31569298,20700.0,20699.0,0.001]
[1673776600540,1.41569298,20700.0,20699.0,0.001]
[1673776600775,1.05841167,20700.0,20692.0,0.49047959]
[1673776601026,0.36101164,20698.0,20692.0,0.68120554]
[1673776601268,1.41075389,20697.0,20690.0,0.48227229]
[1673776601500,1.62736087,20697.0,20690.0,0.48227229]
[1673776601749,1.62736087,20697.0,20690.0,0.67299824]
[1673776601750,0.21327772,20696.0,20690.0,0.67299824]
[1673776601994,0.21327772,20696.0,20690.0,0.48227229]
[1673776601995,0.783223,20695.0,20690.0,0.48227229]
[1673776602496,0.92762989,20695.0,20690.0,0.00245817]
[1673776602755,0.14317172,20694.0,20690.0,0.00245817]
[1673776602996,1.449776,20693.0,20690.0,0.00245817]
[1673776603225,0.48455242,20692.0,20690.0,0.00245817]
[1673776603477,1.449903,20691.0,20690.0,0.00245817]
[1673776603784,0.966602,20691.0,20690.0,0.56795902]
[1673776604044,0.68853117,20691.0,20690.0,0.48762902]
[1673776604291,0.43971877,20694.0,20690.0,0.48762902]
[1673776604545,0.55534178,20702.0,20693.0,1.07720169]
[1673776604785,0.02353959,20703.0,20697.0,0.47720169]
[1673776605035,0.02353959,20703.0,20699.0,0.74323824]
[1673776605036,0.006,20700.0,20699.0,0.74323824]
[1673776605280,0.02353959,20703.0,20701.0,0.018]
[1673776605281,0.00603959,20703.0,20701.0,0.018]
[1673776605528,0.02304462,20704.0,20702.0,0.89204364]
[1673776605774,0.02304462,20704.0,20703.0,1.7288046]
[1673776606015,0.02304462,20704.0,20703.0,2.58330348]
[1673776606262,0.02116339,20709.0,20703.0,2.74374952]
[1673776606541,0.02116339,20709.0,20704.0,2.7805106]
[1673776606775,0.02116339,20709.0,20705.0,1.7287666]
[1673776607027,0.02116339,20709.0,20706.0,2.2974446]
[1673776607276,0.02116339,20709.0,20707.0,0.321252]
[1673776607560,0.02116339,20709.0,20708.0,0.215547]
[1673776607803,0.02116339,20709.0,20708.0,0.224047]
[1673776608298,0.02116339,20709.0,20708.0,0.6709215]
[1673776608791,0.02116339,20709.0,20708.0,0.224047]
[1673776609026,0.02116339,20709.0,20708.0,0.324047]
[1673776609268,0.02116339,20709.0,20708.0,1.33461328]
[1673776609528,0.02116339,20709.0,20708.0,1.63461328]
[1673776610507,0.02116339,20709.0,20708.0,1.63480265]
[1673776610785,0.02541403,20713.0,20709.0,0.02116]
[1673776611037,0.00520789,20715.0,20711.0,0.47720169]
[1673776611302,7.89e-06,20715.0,20714.0,0.47720169]
[1673776611592,7.89e-06,20715.0,20714.0,1.76386769]
[1673776611840,7.89e-06,20715.0,20714.0,0.321136]
[1673776612123,7.89e-06,20715.0,20714.0,0.0085]
[1673776612368,7.89e-06,20715.0,20713.0,0.1085]
[1673776612612,7.89e-06,20715.0,20714.0,0.094]
[1673776612848,7.89e-06,20715.0,20714.0,0.329977]
[1673776613099,7.89e-06,20715.0,20714.0,0.423977]
[1673776613376,7.89e-06,20715.0,20714.0,0.86159218]
[1673776613622,7.89e-06,20715.0,20714.0,0.423977]
[1673776613856,7.89e-06,20715.0,20714.0,1.7049811]
[1673776614096,7.89e-06,20715.0,20714.0,0.69616423]
[1673776614350,7.89e-06,20715.0,20714.0,0.321477]
[1673776614823,7.89e-06,20715.0,20714.0,0.415477]
[1673776615061,7.89e-06,20715.0,20714.0,1.26762808]
[1673776615310,7.89e-06,20715.0,20714.0,1.79886278]
[1673776615804,7.89e-06,20715.0,20714.0,1.80736278]
[1673776616054,7.89e-06,20715.0,20714.0,0.79892639]
[1673776616296,7.89e-06,20715.0,20714.0,0.423977]
[1673776617037,7.89e-06,20715.0,20714.0,1.59188597]
[1673776617311,7.89e-06,20715.0,20714.0,1.38394369]
[1673776617611,0.00413001,20717.0,20715.0,5.211e-05]
[1673776617858,0.00413001,20717.0,20716.0,0.215109]
[1673776618100,0.29110617,20717.0,20715.0,0.35256385]
[1673776618349,0.36912248,20716.0,20715.0,5.211e-05]
[1673776618640,0.57085225,20716.0,20715.0,5.211e-05]
[1673776618883,0.985418,20716.0,20715.0,5.211e-05]
[1673776619120,1.768136,20716.0,20715.0,5.211e-05]
[1673776619621,1.768136,20716.0,20715.0,0.08705211]
[1673776619863,1.80929523,20716.0,20715.0,5.211e-05]
[1673776620125,1.81529523,20716.0,20715.0,0.00705211]
[1673776620377,1.80929523,20716.0,20715.0,5.211e-05]
[1673776620633,1.768136,20716.0,20715.0,5.211e-05]
[1673776620886,1.474136,20716.0,20715.0,0.00605211]
[1673776621155,2.374136,20716.0,20707.0,0.43761518]
[1673776621372,0.3,20715.0,20708.0,0.55027159]
[1673776621617,0.96558,20713.0,20708.0,0.55027159]
[1673776621859,0.96558,20713.0,20708.0,0.35954564]
[1673776622116,0.48279,20713.0,20708.0,0.19072595]
[1673776622359,0.28342117,20715.0,20709.0,0.1]
[1673776622628,0.28342117,20715.0,20710.0,0.19072595]
[1673776622870,0.27442117,20715.0,20710.0,0.19072595]
[1673776623118,0.27342117,20715.0,20710.0,0.19072595]
[1673776623359,0.27442117,20715.0,20710.0,0.19072595]
[1673776623604,0.2555251,20715.0,20710.0,0.29072595]
[1673776623853,0.001,20715.0,20710.0,1.33843895]
[1673776624086,0.001,20715.0,20711.0,0.19072595]
[1673776624330,0.001,20715.0,20711.0,1.59398013]
[1673776624580,0.31429418,20715.0,20711.0,1.51218821]
[1673776624835,0.31429418,20715.0,20712.0,0.0003862]
[1673776625071,0.31429418,20715.0,20712.0,0.9659892]
[1673776625317,0.7427,20716.0,20713.0,0.0085]
[1673776625565,0.001,20715.0,20714.0,0.482765]
[1673776625806,0.24,20716.0,20715.0,0.16607]
[1673776626060,0.24,20716.0,20715.0,1.453029]
[1673776626316,0.24,20716.0,20715.0,1.461529]
[1673776626799,0.24,20716.0,20715.0,1.94456857]
[1673776627037,0.249,20716.0,20715.0,1.95056857]
[1673776627296,0.239,20716.0,20715.0,0.493547]
[1673776627569,0.239,20716.0,20715.0,0.502047]
[1673776627820,0.239,20716.0,20715.0,1.03966218]
[1673776628317,0.239,20716.0,20715.0,1.41725001]
[1673776628564,0.00413001,20717.0,20716.0,0.58699999]
[1673776628836,0.00413001,20717.0,20716.0,1.73103581]
[1673776629578,0.00513001,20717.0,20716.0,1.81403581]
[1673776629837,0.00413001,20717.0,20716.0,1.73103581]
[1673776630075,0.00513001,20717.0,20716.0,2.2912375]
[1673776630365,0.00413001,20717.0,20716.0,2.2082375]
[1673776630621,0.00513001,20717.0,20716.0,2.5912375]
[1673776630864,0.00513001,20717.0,20716.0,2.7739555]
[1673776631127,0.02541403,20718.0,20717.0,0.46153425]
[1673776631128,4.04e-06,20718.0,20717.0,0.46153425]
[1673776631374,4.04e-06,20718.0,20717.0,2.22164727]
[1673776631614,4.04e-06,20718.0,20717.0,2.52164727]
[1673776631856,0.01655007,20724.0,20717.0,2.52164727]
[1673776632114,0.01655007,20724.0,20721.0,0.47720169]
[1673776632361,0.01655007,20724.0,20722.0,2.7053478]
[1673776632601,0.01655007,20724.0,20723.0,1.09008483]
[1673776632864,0.01755007,20724.0,20723.0,1.77186578]
[1673776633125,0.01471933,20731.0,20724.0,0.1]
[1673776633368,0.01471933,20731.0,20726.0,1.44216769]
[1673776633613,0.01471933,20731.0,20727.0,1.62526996]
[1673776633867,0.01471933,20731.0,20728.0,2.19721401]
[1673776633868,1e-08,20731.0,20728.0,2.19721401]
[1673776634117,1e-08,20731.0,20729.0,0.223434]
[1673776634359,1e-08,20731.0,20725.0,0.43388532]
[1673776634360,0.48239101,20731.0,20725.0,0.43388532]
[1673776634605,0.48239101,20731.0,20723.0,0.084]
[1673776634848,0.48239101,20731.0,20721.0,0.43388532]
[1673776635099,0.48239101,20731.0,20726.0,0.103]
[1673776635100,0.1,20730.0,20726.0,0.103]
[1673776635381,0.1,20730.0,20718.0,0.20325]
[1673776635382,2.04726,20729.0,20721.0,0.62461127]
[1673776635621,0.3,20728.0,20723.0,0.102]
[1673776635864,1.447422,20727.0,20721.0,0.19072595]
[1673776636121,1.447422,20727.0,20721.0,0.094]
[1673776636364,1.447422,20727.0,20717.0,0.44719978]
[1673776636365,1.83861835,20727.0,20717.0,0.44719978]
[1673776636618,1.83861835,20727.0,20718.0,0.19941]
[1673776636619,0.3,20726.0,20718.0,0.19941]
[1673776636863,1.447623,20724.0,20718.0,0.19072595]
[1673776637136,0.965082,20724.0,20720.0,0.1]
[1673776637365,0.27561829,20725.0,20721.0,0.19111198]
[1673776637625,0.77101522,20727.0,20722.0,0.19072595]
[1673776637866,0.78601522,20727.0,20723.0,0.19072595]
[1673776638114,0.28528143,20726.0,20723.0,0.19072595]
[1673776638355,0.018,20725.0,20724.0,0.00038597]
[1673776638609,0.28528143,20726.0,20722.0,0.44116894]
[1673776638851,0.072,20727.0,20723.0,0.19072595]
[1673776639097,0.072,20727.0,20725.0,0.1]
[1673776639347,0.072,20727.0,20724.0,0.43266894]
[1673776639590,1.34812797,20729.0,20725.0,0.0085]
[1673776639832,0.37288095,20728.0,20726.0,0.4666222]
[1673776640313,0.37288095,20728.0,20724.0,0.44116894]
[1673776640559,0.006,20726.0,20722.0,0.44566894]
[1673776640804,0.006,20726.0,20720.0,0.42746091]
[1673776640805,0.482497,20726.0,20720.0,0.42746091]
[1673776641047,0.48248,20727.0,20722.0,0.41901705]
[1673776641324,0.490446,20728.0,20724.0,0.37510603]
[1673776641325,0.86993358,20728.0,20724.0,0.37510603]
[1673776641575,0.007,20726.0,20724.0,0.19072595]
[1673776641828,0.482466,20727.0,20725.0,0.38948081]
[1673776642069,0.488466,20727.0,20723.0,0.40211485]
[1673776642307,0.488466,20727.0,20726.0,0.36852088]
[1673776642595,0.482466,20727.0,20724.0,0.47148654]
[1673776642834,0.86193358,20728.0,20724.0,0.47148654]
[1673776643079,0.27902936,20727.0,20724.0,0.66221249]
[1673776643327,0.5121,20729.0,20725.0,0.0085]
[1673776643576,0.89242643,20729.0,20726.0,0.19072595]
[1673776644069,0.5071,20729.0,20727.0,0.49719983]
[1673776644550,0.5141,20729.0,20727.0,0.49719983]
[1673776644762,0.5071,20729.0,20727.0,0.49719983]
[1673776645240,0.5151,20729.0,20727.0,0.51119983]
[1673776645729,0.84088495,20729.0,20727.0,0.014]
[1673776645966,0.36720091,20728.0,20727.0,0.014]
[1673776646214,0.43174848,20728.0,20718.0,0.33791262]
[1673776646462,0.96498,20726.0,20722.0,0.46412306]
[1673776646719,0.96498,20726.0,20718.0,0.81928799]
[1673776646955,1.12188285,20726.0,20721.0,0.36491996]
[1673776647223,0.3,20725.0,20722.0,0.45539357]
[1673776647436,0.482532,20725.0,20719.0,0.19811]
[1673776647695,0.482532,20725.0,20721.0,0.37649423]
[1673776647942,0.35834969,20724.0,20720.0,0.4667902]
[1673776648424,0.84088669,20724.0,20720.0,0.4667902]
[1673776648663,0.83588669,20724.0,20720.0,0.4667902]
[1673776648963,0.83588669,20724.0,20722.0,0.42960533]
[1673776649708,0.84588669,20724.0,20720.0,0.19072595]
[1673776649929,0.84588669,20724.0,20720.0,0.48117852]
[1673776650189,0.84588669,20724.0,20720.0,0.48114367]
[1673776650440,0.00010064,20723.0,20720.0,0.48114367]
[1673776650688,0.27239356,20722.0,20720.0,0.48114367]
[1673776651177,0.79048379,20727.0,20722.0,0.81718067]
[1673776651434,0.007,20724.0,20723.0,0.19072595]
[1673776651707,0.007,20724.0,20722.0,1.63436134]
[1673776651956,0.34029674,20726.0,20722.0,1.63436134]
[1673776652232,0.34029674,20726.0,20722.0,1.82508729]
[1673776652466,0.5254,20727.0,20722.0,2.30766529]
[1673776652709,0.007,20724.0,20723.0,0.19072595]
[1673776652976,0.5174,20727.0,20723.0,1.295087]
[1673776653223,0.33874113,20729.0,20724.0,0.45565668]
[1673776653483,0.33874113,20729.0,20725.0,0.67322195]
[1673776653727,0.33874113,20729.0,20725.0,1.10415399]
[1673776653972,1e-08,20731.0,20727.0,0.1]
[1673776654223,0.36789841,20731.0,20728.0,0.19072595]
[1673776654461,1e-08,20731.0,20728.0,0.19072595]
[1673776654708,1e-08,20731.0,20728.0,1.15559895]
[1673776654965,1e-08,20731.0,20728.0,0.964873]
[1673776655213,1e-08,20731.0,20728.0,1.15559895]
[1673776655458,1e-08,20731.0,20728.0,0.964873]
[1673776655708,0.00800001,20731.0,20728.0,1.40180504]
[1673776655949,1e-08,20731.0,20729.0,0.38972132]
[1673776656192,0.00800001,20731.0,20729.0,0.87212432]
[1673776656484,0.00010064,20730.0,20729.0,0.38972132]
[1673776656750,0.00010064,20730.0,20726.0,1.37791236]
[1673776656994,0.00010064,20730.0,20726.0,0.46450132]
[1673776657526,0.96491264,20730.0,20726.0,0.46450132]
[1673776657751,0.96491264,20730.0,20724.0,0.92085405]
[1673776658010,0.96491264,20730.0,20724.0,0.48973713]
[1673776658256,0.95991264,20730.0,20724.0,0.68046308]
[1673776658529,1.2338096,20730.0,20722.0,1.63436134]
[1673776658786,0.1,20728.0,20722.0,2.04095356]
[1673776659013,1.447443,20727.0,20722.0,2.04095356]
[1673776659260,0.964962,20727.0,20725.0,0.39452762]
[1673776660503,0.964962,20727.0,20719.0,0.35544126]
[1673776660744,0.1,20725.0,20721.0,0.39814764]
[1673776661003,0.965072,20724.0,20721.0,0.39814764]
[1673776661237,0.34572504,20723.0,20718.0,0.41589798]
[1673776661481,1.33999504,20723.0,20718.0,0.41589798]
[1673776662222,1.82255004,20723.0,20718.0,0.41589798]
[1673776662455,1.83155004,20723.0,20718.0,0.60662393]
[1673776662751,1.83155004,20723.0,20718.0,0.19072595]
[1673776663011,2.07155004,20723.0,20718.0,0.68626213]
[1673776663758,0.33938212,20722.0,20718.0,0.49553618]
[1673776664006,0.482596,20722.0,20718.0,0.19072595]
[1673776664244,1.234256,20723.0,20719.0,0.48509764]
[1673776664489,1.234256,20723.0,20719.0,0.67582359]
[1673776664490,0.7517,20723.0,20719.0,0.67582359]
[1673776664730,0.7607,20723.0,20719.0,0.19072595]
[1673776664979,0.7517,20723.0,20719.0,1.02918651]
[1673776665233,0.009,20722.0,20720.0,0.00010065]
[1673776665480,0.7517,20723.0,20720.0,0.00010065]
[1673776665721,0.25,20723.0,20720.0,0.00010065]
[1673776665966,0.24,20723.0,20720.0,0.1908266]
[1673776666210,0.24,20723.0,20720.0,0.00010065]
[1673776666458,0.24,20723.0,20721.0,0.35624983]
[1673776666705,0.24,20723.0,20720.0,0.00010065]
[1673776666946,0.24,20723.0,20720.0,0.38919814]
[1673776667705,0.32186881,20722.0,20720.0,0.38919814]
[1673776668672,0.32186881,20722.0,20720.0,0.38909749]
[1673776668918,0.24,20723.0,20719.0,0.43378062]
[1673776669161,0.24,20723.0,20720.0,0.19922595]
[1673776669414,0.24,20723.0,20721.0,0.75525762]
[1673776669659,0.24,20723.0,20722.0,0.314919]
[1673776670177,0.24,20723.0,20722.0,0.323419]
[1673776670395,0.24,20723.0,20722.0,0.75719962]
[1673776670635,0.242,20723.0,20722.0,1.53440131]
[1673776670876,0.08846776,20723.0,20722.0,1.67718393]
[1673776671117,0.09246776,20723.0,20722.0,2.79010761]
[1673776671375,1e-08,20731.0,20724.0,0.17293552]
[1673776671626,0.44626,20731.0,20726.0,0.964966]
[1673776671851,1e-08,20731.0,20727.0,1.06956531]
[1673776672111,1e-08,20731.0,20728.0,0.19072595]
[1673776672360,1e-08,20731.0,20728.0,0.67315195]
[1673776672602,0.16941366,20733.0,20729.0,0.96792764]
[1673776672843,0.02623951,20733.0,20730.0,2.87691954]
[1673776673088,0.02623951,20733.0,20731.0,1.31453814]
[1673776673334,0.02623951,20733.0,20732.0,1.98672016]
[1673776673583,0.02623951,20733.0,20732.0,2.41694066]
[1673776673832,0.02623951,20733.0,20732.0,1.98672016]
[1673776674131,0.03023951,20733.0,20732.0,1.98672016]
[1673776674375,0.03023951,20733.0,20732.0,3.27195739]
[1673776674624,0.03423951,20733.0,20732.0,3.61995739]
[1673776674880,0.02623951,20733.0,20732.0,3.57195739]
[1673776675116,0.02623951,20733.0,20732.0,3.12918186]
[1673776675365,0.03023951,20733.0,20732.0,3.17718186]
[1673776675856,0.03023951,20733.0,20732.0,2.74696136]
[1673776676102,0.03023951,20733.0,20732.0,3.04696136]
[1673776676340,0.02623951,20733.0,20732.0,2.69896136]
[1673776676585,0.03023951,20733.0,20732.0,2.74696136]
[1673776676836,0.03023951,20733.0,20732.0,2.17471379]
[1673776677083,0.02623951,20733.0,20732.0,1.20013468]
[1673776677319,0.02623951,20733.0,20732.0,0.7602412]
[1673776677320,0.03023951,20733.0,20732.0,0.7602412]
[1673776677590,0.37918255,20733.0,20732.0,0.7122412]
[1673776678122,0.38318255,20733.0,20732.0,0.7562412]
[1673776678367,0.02623951,20733.0,20732.0,0.7140622]
[1673776678620,0.03023951,20733.0,20732.0,0.7562412]
[1673776679339,0.03023951,20733.0,20732.0,1.02505487]
[1673776679578,0.02623951,20733.0,20732.0,1.46340087]
[1673776679828,0.03023951,20733.0,20732.0,1.90686309]
[1673776680354,0.03023951,20733.0,20732.0,1.90731599]
[1673776680587,0.03023951,20733.0,20732.0,1.51590087]
[1673776681315,0.03023951,20733.0,20732.0,1.9981082]
[1673776681569,0.03023951,20733.0,20732.0,1.99824687]
[1673776681815,0.03023951,20733.0,20732.0,2.00942649]
[1673776682059,0.03023951,20733.0,20732.0,1.0249162]
[1673776682301,0.03023951,20733.0,20732.0,0.7562412]
[1673776682800,0.51630672,20733.0,20732.0,0.7562412]
[1673776683259,0.51230672,20733.0,20732.0,0.7522412]
[1673776683501,0.99462872,20733.0,20732.0,0.7122412]
[1673776683739,0.99462872,20733.0,20727.0,2.47690045]
[1673776683740,1.07606951,20733.0,20727.0,2.44738911]
[1673776683977,0.80856151,20733.0,20727.0,2.44738911]
[1673776684231,0.3,20732.0,20728.0,0.48466353]
[1673776684469,0.88940977,20733.0,20730.0,0.41168419]
[1673776684717,0.88940977,20733.0,20731.0,0.37804492]
[1673776685250,0.267508,20732.0,20731.0,0.37804492]
[1673776685490,0.27123951,20733.0,20731.0,0.37804492]
[1673776685979,0.27123951,20733.0,20731.0,0.028]
[1673776685980,0.267508,20732.0,20731.0,0.028]
[1673776686260,0.67055455,20732.0,20731.0,0.028]
[1673776686498,1.63524655,20732.0,20731.0,0.028]
[1673776687006,1.63524655,20732.0,20728.0,0.35201518]
[1673776687255,1.37073855,20732.0,20731.0,0.03]
[1673776687500,1.63824655,20732.0,20731.0,0.03]
[1673776688230,1.54620341,20732.0,20727.0,1.99446045]
[1673776688470,1.32369541,20732.0,20731.0,0.003]
[1673776688711,1.64620341,20732.0,20727.0,1.99446045]
[1673776688954,0.19835261,20731.0,20727.0,1.99446045]
[1673776689218,1.714699,20730.0,20728.0,0.19072595]
[1673776689466,1.447191,20730.0,20728.0,0.35985789]
[1673776689703,1.447191,20730.0,20727.0,1.99446045]
[1673776689704,0.267508,20729.0,20727.0,1.99446045]
[1673776689950,0.964794,20730.0,20727.0,2.45310557]
[1673776690183,0.97637857,20731.0,20728.0,0.37601744]
[1673776690427,0.97637857,20731.0,20727.0,1.99446045]
[1673776690428,0.44118579,20730.0,20727.0,1.99446045]
[1673776690678,1.18812756,20729.0,20727.0,1.99446045]
[1673776690908,0.267508,20728.0,20727.0,1.99446045]
[1673776691152,1.40305456,20729.0,20728.0,0.034]
[1673776691377,1.40305456,20729.0,20727.0,1.99446045]
[1673776691627,1.40305456,20729.0,20727.0,1.99746045]
[1673776691628,0.267508,20728.0,20727.0,1.99746045]
[1673776691875,0.749947,20728.0,20727.0,1.99446045]
[1673776692107,0.09,20729.0,20728.0,0.003]
[1673776692353,0.974759,20732.0,20728.0,0.003]
[1673776692354,1.34736845,20732.0,20728.0,0.58536865]
[1673776692583,0.48651103,20731.0,20729.0,0.19072595]
[1673776692817,0.48651103,20731.0,20728.0,0.50162865]
[1673776693380,0.48651103,20731.0,20729.0,0.00018902]
[1673776693645,0.48651103,20731.0,20728.0,0.42429865]
[1673776693905,0.48651103,20731.0,20728.0,0.003]
[1673776693906,0.096887,20730.0,20728.0,0.003]
[1673776694170,0.964743,20731.0,20727.0,1.99446045]
[1673776694171,1.232338,20729.0,20727.0,1.99446045]
[1673776694464,0.96483,20729.0,20727.0,1.99446045]
[1673776694713,0.267508,20728.0,20727.0,1.99446045]
[1673776694979,1.232386,20728.0,20727.0,1.99446045]
[1673776695551,1.51573548,20728.0,20727.0,1.99446045]
[1673776695824,1.81124348,20728.0,20727.0,1.99446045]
[1673776696100,1.38382984,20728.0,20727.0,1.99446045]
[1673776696613,1.49191984,20728.0,20727.0,1.99446045]
[1673776696878,1.94810281,20728.0,20727.0,1.99446045]
[1673776697149,1.70156897,20728.0,20727.0,1.89446045]
[1673776697400,1.328476,20728.0,20727.0,1.89446045]
[1673776697668,1.320386,20728.0,20727.0,1.89446045]
[1673776698196,1.63360338,20728.0,20727.0,1.89624553]
[1673776698484,1.72160338,20728.0,20727.0,1.89446045]
[1673776698751,1.63360338,20728.0,20727.0,1.89446045]
[1673776699003,1.232386,20728.0,20727.0,1.7990478]
[1673776699253,1.66354217,20728.0,20727.0,1.74971736]
[1673776700067,1.75154217,20728.0,20727.0,1.74971736]
[1673776700310,1.66354217,20728.0,20727.0,1.74971736]
[1673776700840,1.75154217,20728.0,20727.0,1.74971736]
[1673776701100,1.66354217,20728.0,20727.0,1.74971736]
[1673776701348,1.75154217,20728.0,20727.0,1.74971736]
[1673776701609,1.66354217,20728.0,20727.0,1.74971736]
[1673776701862,2.00450298,20728.0,20727.0,1.74971736]
[1673776702130,2.00450298,20728.0,20724.0,0.17293552]
[1673776702131,1.58143681,20728.0,20724.0,0.17293552]
[1673776702419,0.45948383,20727.0,20724.0,0.16468484]
[1673776702634,2.014963,20726.0,20724.0,0.16468484]
[1673776702887,2.014963,20726.0,20723.0,0.99736162]
[1673776702888,1.747455,20726.0,20723.0,0.99736162]
[1673776703131,0.41130153,20725.0,20723.0,0.99736162]
[1673776703404,1.747596,20724.0,20723.0,0.99736162]
[1673776703697,2.45056037,20724.0,20723.0,0.99736162]
[1673776703892,2.015104,20724.0,20723.0,0.99736162]
[1673776704706,1.715104,20724.0,20723.0,0.99736162]
[1673776704936,1.803104,20724.0,20723.0,0.99736162]
[1673776705435,2.50106631,20724.0,20723.0,0.99736162]
[1673776705688,2.5009763,20724.0,20723.0,0.99736162]
[1673776705940,2.4129763,20724.0,20723.0,0.99736162]
[1673776706233,2.5009763,20724.0,20723.0,0.99736162]
[1673776706443,2.4129763,20724.0,20723.0,0.99736162]
[1673776706689,2.5009763,20724.0,20723.0,0.99736162]
[1673776707702,2.4129763,20724.0,20723.0,0.99736162]
[1673776708444,0.267508,20724.0,20723.0,1.18808757]
[1673776708754,0.088,20724.0,20723.0,1.39075474]
[1673776710038,0.482488,20726.0,20723.0,1.39075474]
[1673776710252,0.5564,20729.0,20724.0,0.19072595]
[1673776710493,0.9665546,20730.0,20725.0,0.29072595]
[1673776710756,0.48238,20731.0,20726.0,0.19072595]
[1673776711022,0.48238,20731.0,20727.0,0.19072595]
[1673776711276,0.267508,20730.0,20728.0,0.19090471]
[1673776711505,0.482356,20732.0,20728.0,0.29090471]
[1673776711761,0.08,20729.0,20728.0,0.10017876]
[1673776712021,0.482356,20732.0,20728.0,0.00017876]
[1673776712284,0.006,20731.0,20728.0,0.19072595]
[1673776712610,0.482356,20732.0,20727.0,0.482457]
[1673776712611,0.582346,20732.0,20727.0,0.482457]
[1673776712787,0.267508,20731.0,20728.0,0.011]
[1673776713040,0.90404845,20732.0,20728.0,0.011]
[1673776713301,0.267508,20731.0,20727.0,0.36497371]
[1673776713564,0.41353323,20731.0,20728.0,0.01117876]
[1673776713800,0.267508,20730.0,20728.0,0.011]
[1673776714048,0.41353323,20731.0,20728.0,0.011]